Workbook

Sheet Wages_Salaries
B2: N3 Lifeskills - Practice Questions Created by Mr.Lafferty@mathsrevision.com
AZ4: 25
AZ5: =ROUND(RAND()*(6-1)+1,0)*10 -> 40 | BA5: =IF(AZ5=60,25,AZ5) -> 40
AZ6: =ROUND(RAND()*(15-3)+3,0)*100 -> 700
D8: ="Q1. Joseph weekly wage is £"&TEXT(AZ6,0)&". His brother Luke earns "&BA5&"% more than him." -> Q1. Joseph weekly wage is £700. His brother Luke earns 40% more than him.
E9: =" How much does his brother earn each week ?" -> How much does his brother earn each week ? | Y9: £ | AZ9: =AZ6+(BA5/100*AZ6) -> 980
BA12: =ROUND(RAND()*(20-7.2)+7.2,1) -> 16.5
D13: ="Q2. Jordan gets paid annual salary of £"&TEXT(BA14,"0.00")&"." -> Q2. Jordan gets paid annual salary of £37752.00. | U13: hourly rate | Y13: £ | AZ13: =BA12 -> 16.5 | BA13: =ROUND(RAND()*(50-25)+25,0) -> 44
E14: ="He works "&BA13&" hours a week. Calculate his hourly rate." -> He works 44 hours a week. Calculate his hourly rate. | BA14: =BA12*BA13*52 -> 37752
D17: ="Q3. Lewis is promised an hourly rate of £"&TEXT(BA17,"0.00")&". He gets £"&TEXT(AZ18,"0.00")&" for "&BA19&" hours work. Did he get his promised hourly rate." -> Q3. Lewis is promised an hourly rate of £13.60. He gets £530.40 for 39 hours work. Did he get his promised hourly rate. | AZ17: =IF(BB17=1,"Yes","No") -> No | BA17: =ROUND(RAND()*(18-7.5)+7.5,1) -> 13.6 | BB17: =ROUND(RAND()*(1-0)+0,0) -> 0
AZ18: =BA17*BA19 -> 530.4 | BA18: =IF(BB17=1,BA17,(BA17-0.1)) -> 13.5
AZ19: =BA18*BA19 -> 526.5 | BA19: =ROUND(RAND()*(50-25)+25,0) -> 39
AZ20: =BA20*BA21*52 -> 9828 | BA20: =ROUND(RAND()*(18-8)+8,0) -> 9 | BB20: =ROUND(RAND()*(8-2)+2,0) -> 6
D21: ="Q4. Laura gets a "&BB20&"% increase in her annual salary. Her salary last year was £"&TEXT(AZ20,0)&". What is her new salary." -> Q4. Laura gets a 6% increase in her annual salary. Her salary last year was £9828. What is her new salary. | AM21: £ | AZ21: =ROUND(AZ20+AZ20*BB20/100,2) -> 10417.68 | BA21: =ROUND(RAND()*(40-15)+15,0) -> 21
D24: ="Q5. Andrew gets paid double time if he works the weekend. His normal hourly rate is £"&TEXT(AZ24,"0.00")&". Calculate his weekly wage." -> Q5. Andrew gets paid double time if he works the weekend. His normal hourly rate is £17.40. Calculate his weekly wage. | AZ24: =ROUND(RAND()*(20-6)+6,1) -> 17.4
S25: Hours Worked | AZ25: =ROUND(RAND()*(13-6)+6,0) -> 8
O26: Monday | S26: =AZ25 -> 8 | AZ26: =ROUND(RAND()*(13-6)+6,0) -> 12
O27: Tuesday | S27: =AZ26 -> 12 | AZ27: 12
O28: Wednesday | S28: 12 | AZ28: 8
O29: Thursday | S29: 8 | AZ29: 10
O30: Friday | S30: 10 | AZ30: 8
O31: Saturday | S31: 8 | AZ31: 10
O32: Sunday | S32: 10 | AZ32: =SUM(AZ25:AZ31)+AZ31+AZ30 -> 86
O34: Weekly Salary £ | AZ34: =AZ32*AZ24 -> 1496.4
D37: ="Q6. Derek is paid 'time and half' if he works over 5pm during week days and 'double time' at weekends." -> Q6. Derek is paid 'time and half' if he works over 5pm during week days and 'double time' at weekends.
E38: ="Calculate his weekly wage if his hourly rate is £"&TEXT(AZ38,"0.00")&"." -> Calculate his weekly wage if his hourly rate is £8.90. | AZ38: =ROUND(RAND()*(10-6)+6,1) -> 8.9 | BA38: =1.5*AZ38 -> 13.35
Q39: Days | U39: Before 5pm | Y39: After 5pm | AZ39: =ROUND(RAND()*(8-5)+5,0) -> 7 | BA39: =ROUND(RAND()*(4-0)+0,0) -> 3
Q40: Monday | U40: =AZ39 -> 7 | Y40: =BA39 -> 3 | AZ40: =ROUND(RAND()*(8-5)+5,0) -> 7 | BA40: =ROUND(RAND()*(4-0)+0,0) -> 1
Q41: Tuesday | U41: =AZ40 -> 7 | Y41: =BA40 -> 1 | AZ41: 5 | BA41: =ROUND(RAND()*(4-0)+0,0) -> 3
Q42: Wednesday | U42: 5 | Y42: =BA41 -> 3 | AZ42: 7 | BA42: =ROUND(RAND()*(4-0)+0,0) -> 0
Q43: Thursday | U43: 7 | Y43: =BA42 -> 0 | AZ43: 5 | BA43: =ROUND(RAND()*(4-0)+0,0) -> 4
Q44: Friday | U44: 5 | Y44: =BA43 -> 4 | AZ44: 7
Q45: Saturday | U45: 7 | AZ45: 6
Q46: Sunday | U46: 6 | AG46: Weekly Salary £ | AZ46: =SUM(AZ39:AZ45)+AZ45+AZ44 -> 57
AZ47: =AZ46*AZ38 -> 507.3 | BA47: =SUM(BA39:BA43)*BA38 -> 146.85
AZ48: =AZ47+BA47+BB47 -> 654.15
D50: Q7. Complete the Wage Slip below : | AZ50: =ROUND(RAND()*(1250-592)+592,1) -> 1074.7
AZ51: =ROUND(AZ50*ROUND(RAND()*(0.25-0.2)+0.2,2),2) -> 247.18
H52: Name: Joe Bloggs | AZ52: =ROUND(AZ50*ROUND(RAND()*(0.18-0.1)+0.1,2),2) -> 171.95
AZ53: =ROUND(AZ50*ROUND(RAND()*(0.04-0.02)+0.02,2),2) -> 32.24
H54: Income | K54: Basic | M54: =AZ50 -> 1074.7 | P54: O/T | S54: =AZ52 -> 171.95 | V54: Bonus | Y54: =AZ54 -> 32.24 | AB54: Total | AV54: =AZ50+AZ52+AZ54 -> 1278.89 | AZ54: =ROUND(AZ50*ROUND(RAND()*(0.08-0.02)+0.02,2),2) -> 32.24
H55: Deductions | K55: Tax | M55: =AZ51 -> 247.18 | P55: Nat. Ins. | S55: =AZ53 -> 32.24 | V55: Pension | Y55: =AZ55 -> 53.74 | AB55: Total | AV55: =AZ51+AZ53+AZ55 -> 333.16 | AZ55: =ROUND(AZ50*0.05,2) -> 53.74
AA56: Net PAY | AV56: =AV54-AV55 -> 945.73
D60: ="Q8. Kerr the car salesperson gets a basic monthly wage of £"&TEXT(AZ60,"0.00")&" + "&AZ61&"% of the total value of the cars he sold." -> Q8. Kerr the car salesperson gets a basic monthly wage of £529.20 + 4% of the total value of the cars he sold. | AZ60: =ROUND(RAND()*(800-500)+500,1) -> 529.2
AZ61: =ROUND(RAND()*(6-2)+2,0) -> 4
E62: ="Calculate his monthly wage if he sold £"&TEXT(AZ62,0)&" worth of cars." -> Calculate his monthly wage if he sold £27300 worth of cars. | AH62: wage £ | AZ62: =ROUND(RAND()*(50000-15000)+15000,-2) -> 27300
AZ63: =AZ60+AZ62*AZ61/100 -> 1621.2
